fUSD/lending_fUSD_20241121
["ID","MTS","AMOUNT","RATE_DAILY","PERIOD"]
[342889311,1732194651242,-2239.49,0.00041369,18]
[342889312,1732194651252,-500.0,0.00041369,18]
[342889313,1732194651262,-993.04,0.00041369,18]
[342889314,1732194651271,-4988.71,0.00041369,18]
[342889315,1732194651282,-597.59,0.00041369,18]
[342889316,1732194651293,-500.0,0.00041369,18]
[342889317,1732194651303,-1765.4,0.00041369,18]
[342889318,1732194651312,-1619.06,0.00041369,18]
[342889319,1732194651322,-500.0,0.00041369,18]
[342889320,1732194651334,-862.66,0.00041369,18]
[342889321,1732194651344,-500.0,0.00041369,18]
[342889322,1732194651354,-966.97,0.00041369,18]
[342889323,1732194651363,-1798.77,0.00041369,18]
[342889324,1732194651378,-500.0,0.00041369,18]
[342889325,1732194651390,-500.0,0.00041369,18]
[342889326,1732194651400,-500.0,0.00041369,18]
[342889327,1732194651410,-870.92,0.00041369,18]
[342889328,1732194651422,-508.94,0.00041369,18]
[342889329,1732194651432,-500.0,0.00041369,18]
[342889330,1732194651442,-500.0,0.00041369,18]
[342889331,1732194651453,-500.0,0.00041369,18]
[342889332,1732194651462,-1868.35,0.00041369,18]
[342889333,1732194651472,-500.0,0.00041369,18]
[342889334,1732194651482,-3655.27,0.00041369,18]
[342889335,1732194651493,-500.0,0.00041369,18]
[342889336,1732194651503,-896.46,0.00041369,18]
[342889337,1732194651513,-674.22,0.00041369,18]
[342889338,1732194651522,-1094.32,0.00041369,18]
[342889339,1732194651532,-663.88,0.00041369,18]
[342889340,1732194651542,-500.0,0.00041369,18]
[342889341,1732194651552,-500.0,0.00041369,18]
[342889342,1732194651562,-805.98,0.00041369,18]
[342889343,1732194651572,-999.92,0.00041369,18]
[342889344,1732194651581,-500.0,0.00041369,18]
[342889345,1732194651591,-500.0,0.00041369,18]
[342889346,1732194651600,-1108.29,0.00041369,18]
[342889347,1732194651609,-3678.44,0.00041369,18]
[342889348,1732194651619,-2705.37,0.00041369,18]
[342889349,1732194651632,-5161.77,0.00041369,18]
[342889350,1732194651641,-500.0,0.00041369,18]
[342889351,1732194651651,-818.39,0.00041369,18]
[342889352,1732194651660,-2837.24,0.00041369,18]
[342889353,1732194651670,-500.0,0.00041369,18]
[342889354,1732194651679,-500.0,0.00041369,18]
[342889355,1732194651689,-1045.6,0.00041369,18]
[342889356,1732194651699,-560.57,0.00041369,18]
[342889357,1732194651709,-1494.03,0.00041369,18]
[342889358,1732194651719,-500.0,0.00041369,18]
[342889359,1732194651728,-3077.47,0.00041369,18]
[342889360,1732194651737,-514.11,0.00041369,18]
[342889361,1732194651746,-500.0,0.00041369,18]
[342889362,1732194651756,-500.0,0.00041369,18]
[342889363,1732194651766,-684.33,0.00041369,18]
[342889364,1732194651776,-758.58,0.00041369,18]
[342889365,1732194651785,-3197.41,0.00041369,18]
[342889366,1732194651795,-2714.24,0.00041369,18]
[342889367,1732194651804,-500.0,0.00041369,18]
[342889368,1732194651814,-5526.07,0.00041369,18]
[342889369,1732194651823,-433.26780689,0.00041369,18]
[342889370,1732194651833,-783.58,0.00041369,18]
[342889371,1732194651842,-500.0,0.00041369,18]
[342889372,1732194651852,-500.0,0.00041369,18]
[342889373,1732194651861,-597.21,0.00041369,18]
[342889374,1732194651871,-500.0,0.00041369,18]
[342889375,1732194651882,-500.0,0.00041369,18]
[342889376,1732194651892,-500.0,0.00041369,18]
[342889377,1732194651901,-796.77,0.00041369,18]
[342889378,1732194651910,-500.0,0.00041369,18]
[342889379,1732194651919,-2234.32,0.00041369,18]
[342889380,1732194651930,-723.07,0.00041369,7]
[342889381,1732194651939,-500.0,0.00041369,18]
[342889382,1732194651949,-551.86,0.00041369,18]
[342889383,1732194651958,-708.81,0.00041369,18]
[342889384,1732194651967,-6964.07,0.00041369,18]
[342889385,1732194651977,-4594.17,0.00041369,18]
[342889386,1732194651987,-500.0,0.00041369,18]
[342889387,1732194651996,-563.0,0.00041369,18]
[342889388,1732194652005,-1633.38,0.00041369,18]
[342889389,1732194652015,-670.31,0.00041369,18]
[342889390,1732194652025,-500.0,0.00041369,18]
[342889391,1732194652035,-500.0,0.00041369,18]
[342889392,1732194652044,-773.49,0.00041369,18]
[342889393,1732194652053,-2134.18,0.00041369,18]
[342889394,1732194652062,-500.0,0.00041369,18]
[342889395,1732194652072,-601.72,0.00041369,18]
[342889396,1732194652081,-836.38,0.00041369,18]
[342889397,1732194652091,-500.0,0.00041369,18]
[342889398,1732194652100,-582.33,0.00041369,18]
[342889399,1732194652111,-973.34,0.00041369,18]
[342889400,1732194652120,-500.0,0.00041369,18]
[342889401,1732194652135,-707.99,0.00041369,18]
[342889402,1732194652144,-506.4649256,0.00041369,18]
[342889403,1732194652154,-2241.61,0.00041369,18]
[342889404,1732194652164,-2158.7,0.00041369,18]
[342889405,1732194652173,-500.0,0.00041369,18]
[342889406,1732194652183,-500.0,0.00041369,18]
[342889407,1732194652192,-551.51,0.00041369,18]
[342889408,1732194652202,-500.0,0.00041369,2]
[342889409,1732194652212,-868.62,0.00041369,18]
[342889410,1732194652221,-1043.98,0.00041369,18]
[342889411,1732194652231,-500.0,0.00041369,18]
[342889412,1732194652240,-500.0,0.00041369,18]
[342889413,1732194652250,-3881.31,0.00041369,18]
[342889414,1732194652260,-538.99,0.00041369,18]
[342889415,1732194652270,-932.75,0.00041369,18]
[342889416,1732194652280,-543.02,0.00041369,18]
[342889417,1732194652290,-500.0,0.00041369,18]
[342889418,1732194652299,-500.0,0.00041369,18]
[342889419,1732194652309,-3765.33,0.00041369,18]
[342889420,1732194652318,-9332.64,0.00041369,18]
[342889421,1732194652328,-150.0,0.00041442,2]
[342889422,1732194652337,-150.0,0.00041461,2]
[342889423,1732194652346,-200.0,0.00041466,120]
[342889424,1732194652355,-235.44977876,0.00041475,28]
[342889425,1732194652366,-300.0,0.00041481,2]
[342889426,1732194652380,-1500.0,0.00041484,7]
[342889427,1732194652390,-150.0,0.00041485,7]
[342889428,1732194652401,-5106.86,0.000415,60]
[342889429,1732194652415,-150.0,0.00041526,2]
[342889430,1732194652426,-153.0,0.00041531,31]
[342889431,1732194652436,-153.0,0.00041531,31]
[342889432,1732194652447,-153.0,0.00041531,31]
[342889433,1732194652459,-153.0,0.00041531,31]
[342889434,1732194652469,-500.0,0.00041533,120]
[342889435,1732194652480,-2632.72308,0.00041538,15]
[342889436,1732194652490,-150.0,0.00041549,2]
[342889437,1732194652500,-150.0,0.00041556,2]
[342889438,1732194652512,-150.0,0.00041562,2]
[342889439,1732194652523,-150.0,0.00041566,2]
[342889440,1732194652533,-150.0,0.00041567,7]
[342889441,1732194652543,-150.0,0.00041571,7]
[342889442,1732194652553,-300.0,0.00041574,2]
[342889443,1732194652563,-150.0,0.00041577,2]
[342889444,1732194652574,-150.0,0.00041584,2]
[342889445,1732194652584,-5178.56,0.00041611,2]
[342889446,1732194652594,-2469.0,0.00041616,120]
[342889447,1732194652604,-500.0,0.00041643,18]
[342889448,1732194652614,-500.0,0.00041643,18]
[342889449,1732194652628,-500.0,0.00041643,18]
[342889450,1732194652639,-500.0,0.00041643,18]
[342889451,1732194652649,-500.0,0.00041643,18]
[342889452,1732194652661,-500.0,0.00041643,18]
[342889453,1732194652671,-500.0,0.00041643,18]
[342889454,1732194652680,-820.99,0.00041643,18]
[342889455,1732194652690,-500.0,0.00041643,18]
[342889456,1732194652700,-551.11,0.00041643,18]
[342889457,1732194652710,-226.97381251,0.00041643,18]
[342889458,1732194652720,-500.0,0.00041643,18]
[342889459,1732194652730,-500.0,0.00041643,18]
[342889460,1732194652739,-500.0,0.00041643,18]
[342889461,1732194652749,-500.0,0.00041643,18]
[342889462,1732194652758,-500.0,0.00041643,18]
[342889463,1732194652768,-1073.8,0.00041643,18]
[342889464,1732194652777,-532.73,0.00041643,18]
[342889465,1732194652787,-500.0,0.00041643,18]
[342889466,1732194652797,-154.589909,0.00041643,18]
[342889467,1732194652806,-170.542089,0.00041643,18]
[342889468,1732194652815,-1022.643842,0.00041643,18]
[342889469,1732194652825,-500.0,0.00041643,18]
[342889470,1732194652834,-500.0,0.00041643,18]
[342889471,1732194652843,-500.0,0.00041643,18]
[342889472,1732194652851,-500.0,0.00041643,18]
[342889473,1732194652861,-546.84,0.00041643,18]
[342889474,1732194652872,-720.41,0.00041643,18]
[342889475,1732194652888,-500.0,0.00041643,18]
[342889476,1732194652897,-500.0,0.00041643,18]
[342889477,1732194652906,-500.0,0.00041643,18]
[342889478,1732194652915,-500.0,0.00041643,18]
[342889479,1732194652924,-500.0,0.00041643,18]
[342889480,1732194652934,-573.75,0.00041643,18]
[342889481,1732194652943,-500.0,0.00041643,18]
[342889482,1732194652953,-592.72,0.00041643,18]
[342889483,1732194652962,-521.8,0.00041643,18]
[342889484,1732194652972,-500.0,0.00041643,18]
[342889485,1732194652981,-500.0,0.00041643,18]
[342889486,1732194652991,-570.14,0.00041643,18]
[342889487,1732194653001,-500.0,0.00041643,18]
[342889488,1732194653009,-636.87,0.00041643,18]
[342889489,1732194653018,-885.53,0.00041643,18]
[342889490,1732194653027,-500.0,0.00041643,18]
[342889491,1732194653036,-500.0,0.00041643,18]
[342889492,1732194653045,-735.84,0.00041643,18]
[342889493,1732194653055,-605.67,0.00041643,18]
[342889494,1732194653064,-864.58,0.00041643,18]
[342889495,1732194653074,-500.0,0.00041643,18]
[342889496,1732194653083,-1089.51,0.00041643,18]
[342889497,1732194653092,-1294.62,0.00041643,18]
[342889498,1732194653102,-970.86,0.00041643,18]
[342889499,1732194653111,-500.0,0.00041643,18]
[342889500,1732194653120,-500.0,0.00041643,18]
[342889501,1732194653137,-500.0,0.00041643,18]
[342889502,1732194653146,-500.0,0.00041643,18]
[342889503,1732194653156,-528.56,0.00041643,18]
[342889504,1732194653165,-782.56,0.00041643,18]
[342889505,1732194653174,-739.73,0.00041643,18]
[342889506,1732194653183,-500.0,0.00041643,18]
[342889507,1732194653193,-652.47,0.00041643,18]
[342889508,1732194653202,-500.0,0.00041643,18]
[342889509,1732194653211,-500.0,0.00041643,18]
[342889510,1732194653220,-500.0,0.00041643,18]
[342889511,1732194653229,-1709.05,0.00041643,18]
[342889512,1732194653239,-500.0,0.00041643,18]
[342889513,1732194653248,-549.94,0.00041643,18]
[342889514,1732194653257,-191.11855959,0.00041643,18]
[342889515,1732194653266,-500.0,0.00041643,18]
[342889516,1732194653275,-1793.24,0.00041643,18]
[342889517,1732194653284,-567.55,0.00041643,18]
[342889518,1732194653294,-500.0,0.00041643,18]
[342889519,1732194653304,-500.0,0.00041643,18]
[342889520,1732194653313,-862.91,0.00041643,18]
[342889521,1732194653323,-502.88,0.00041643,18]
[342889522,1732194653332,-1500.58,0.00041643,18]
[342889523,1732194653341,-500.0,0.00041643,18]
[342889524,1732194653351,-500.0,0.00041643,18]
[342889525,1732194653360,-674.04,0.00041643,18]
[342889526,1732194653370,-500.0,0.00041643,18]
[342889527,1732194653386,-3758.09,0.00041643,18]
[342889528,1732194653395,-500.0,0.00041643,18]
[342889529,1732194653405,-500.0,0.00041643,18]
[342889530,1732194653414,-500.0,0.00041643,18]
[342889531,1732194653427,-500.0,0.00041643,18]
[342889532,1732194653436,-500.0,0.00041643,18]
[342889533,1732194653446,-1720.2,0.00041643,18]
[342889534,1732194653456,-500.0,0.00041643,18]
[342889535,1732194653465,-500.0,0.00041643,18]
[342889536,1732194653475,-683.08,0.00041643,18]
[342889537,1732194653485,-500.0,0.00041643,18]
[342889538,1732194653495,-500.0,0.00041643,18]
[342889539,1732194653505,-1005.12,0.00041643,18]
[342889540,1732194653518,-500.0,0.00041643,18]
[342889541,1732194653527,-500.0,0.00041643,18]
[342889542,1732194653537,-500.0,0.00041643,18]
[342889543,1732194653547,-612.28,0.00041643,18]
[342889544,1732194653556,-500.0,0.00041643,18]
[342889545,1732194653566,-500.0,0.00041643,18]
[342889546,1732194653575,-500.0,0.00041643,18]
[342889547,1732194653585,-500.0,0.00041643,18]
[342889548,1732194653595,-500.0,0.00041643,18]
[342889549,1732194653605,-500.0,0.00041643,18]
[342889550,1732194653615,-500.0,0.00041643,18]
[342889551,1732194653628,-500.0,0.00041643,18]
[342889552,1732194653638,-820.21,0.00041643,18]
[342889553,1732194653647,-589.55,0.00041643,18]
[342889554,1732194653657,-500.0,0.00041643,18]
[342889555,1732194653666,-759.37,0.00041643,18]
[342889556,1732194653675,-500.0,0.00041643,18]
[342889557,1732194653685,-542.43,0.00041643,18]
[342889558,1732194653694,-500.0,0.00041643,18]
[342889559,1732194653703,-500.0,0.00041643,18]
[342889560,1732194653712,-711.21,0.00041643,18]
[342889561,1732194653721,-500.0,0.00041643,18]
[342889562,1732194653731,-597.22,0.00041643,18]
[342889563,1732194653740,-2473.44,0.00041643,18]
[342889564,1732194653749,-500.0,0.00041643,18]
[342889565,1732194653758,-500.0,0.00041643,18]
[342889566,1732194653767,-727.03,0.00041643,18]
[342889567,1732194653777,-500.0,0.00041643,18]
[342889568,1732194653786,-600.89,0.00041643,18]
[342889569,1732194653795,-2227.68,0.00041643,18]
[342889570,1732194653804,-500.0,0.00041643,18]
[342889571,1732194653814,-500.0,0.00041643,18]
[342889572,1732194653823,-1037.59,0.00041643,18]
[342889573,1732194653832,-523.14,0.00041643,18]
[342889574,1732194653842,-658.23,0.00041643,18]
[342889575,1732194653851,-500.0,0.00041643,18]
[342889576,1732194653860,-500.0,0.00041643,18]
[342889577,1732194653869,-541.47,0.00041643,18]
[342889578,1732194653882,-500.0,0.00041643,18]
[342889579,1732194653891,-676.64,0.00041643,18]
[342889580,1732194653900,-500.0,0.00041643,18]
[342889581,1732194653911,-500.0,0.00041643,18]
[342889582,1732194653920,-500.0,0.00041643,18]
[342889583,1732194653929,-700.0,0.00041643,18]
[342889584,1732194653938,-1704.93,0.00041643,18]
[342889585,1732194653948,-500.0,0.00041643,18]
[342889586,1732194653957,-500.0,0.00041643,18]
[342889587,1732194653966,-3586.05,0.00041643,18]
[342889588,1732194653975,-794.07,0.00041643,18]
[342889589,1732194653984,-500.0,0.00041643,18]
[342889590,1732194653994,-500.0,0.00041643,18]
[342889591,1732194654002,-1080.61,0.00041643,18]
[342889592,1732194654012,-500.0,0.00041643,18]
[342889593,1732194654021,-500.0,0.00041643,18]
[342889594,1732194654029,-500.0,0.00041643,18]
[342889595,1732194654038,-500.0,0.00041643,18]
[342889596,1732194654047,-617.05,0.00041643,18]
[342889597,1732194654056,-500.0,0.00041643,18]
[342889598,1732194654066,-500.0,0.00041643,18]
[342889599,1732194654075,-500.0,0.00041643,18]
[342889600,1732194654084,-500.0,0.00041643,18]
[342889601,1732194654093,-437.9884305,0.00041643,18]
[342889602,1732194654102,-500.0,0.00041643,18]
[342889603,1732194654111,-500.0,0.00041643,18]
[342889604,1732194654121,-871.76,0.00041643,18]
[342889605,1732194654133,-527.11,0.00041643,18]
[342889606,1732194654142,-500.0,0.00041643,18]
[342889607,1732194654152,-500.0,0.00041643,18]
[342889608,1732194654160,-500.0,0.00041643,18]
[342889609,1732194654170,-595.66,0.00041643,18]
[342889610,1732194654179,-573.0,0.00041643,18]
[342889611,1732194654188,-500.0,0.00041643,18]
[342889612,1732194654199,-500.0,0.00041643,18]
[342889613,1732194654209,-1250.24,0.00041643,18]
[342889614,1732194654218,-500.0,0.00041643,18]
[342889615,1732194654228,-500.0,0.00041643,18]
[342889616,1732194654237,-1286.32,0.00041643,18]
[342889617,1732194654247,-1269.19,0.00041643,18]
[342889618,1732194654256,-500.0,0.00041643,18]
[342889619,1732194654266,-534.53,0.00041643,18]
[342889620,1732194654275,-689.61,0.00041643,18]
[342889621,1732194654284,-574.77,0.00041643,18]
[342889622,1732194654294,-500.0,0.00041643,18]
[342889623,1732194654303,-500.0,0.00041643,18]
[342889624,1732194654312,-978.86,0.00041643,18]
[342889625,1732194654322,-500.0,0.00041643,18]
[342889626,1732194654331,-1384.23,0.00041643,18]
[342889627,1732194654341,-500.0,0.00041643,18]
[342889628,1732194654350,-500.0,0.00041643,18]
[342889629,1732194654359,-500.0,0.00041643,18]
[342889630,1732194654368,-1047.57,0.00041643,18]
[342889631,1732194654381,-500.0,0.00041643,18]
[342889632,1732194654390,-500.0,0.00041643,18]
[342889633,1732194654399,-1876.42,0.00041643,18]
[342889634,1732194654412,-500.0,0.00041643,18]
[342889635,1732194654423,-806.53,0.00041643,18]
[342889636,1732194654433,-724.57,0.00041643,18]
[342889637,1732194654443,-796.48,0.00041643,18]
[342889638,1732194654454,-500.0,0.00041643,18]
[342889639,1732194654464,-500.0,0.00041643,18]
[342889640,1732194654473,-532.68907741,0.00041643,18]
[342889641,1732194654483,-500.0,0.00041643,18]
[342889642,1732194654493,-500.0,0.00041643,18]
[342889643,1732194654502,-760.17,0.00041643,18]
[342889644,1732194654512,-1453.39,0.00041643,18]
[342889645,1732194654521,-830.01,0.00041643,18]
[342889646,1732194654530,-151.304065,0.00041643,14]
[342889647,1732194654540,-500.0,0.00041643,18]
[342889648,1732194654549,-390.41780558,0.00041643,18]
[342889649,1732194654559,-1772.63,0.00041643,18]
[342889650,1732194654568,-577.34,0.00041643,18]
[342889651,1732194654684,-500.0,0.00041643,18]
[342889652,1732194654733,-914.38,0.00041643,18]
[342889653,1732194654743,-500.0,0.00041643,18]
[342889654,1732194654753,-500.0,0.00041643,18]
[342889655,1732194654763,-722.44,0.00041643,18]
[342889656,1732194654772,-500.0,0.00041643,18]
[342889657,1732194654781,-500.0,0.00041643,18]
[342889658,1732194654791,-1775.26,0.00041643,18]
[342889659,1732194654800,-704.54,0.00041643,18]
[342889660,1732194654811,-500.0,0.00041643,18]
[342889661,1732194654820,-1295.65,0.00041643,18]
[342889662,1732194654830,-500.0,0.00041643,18]
[342889663,1732194654839,-500.0,0.00041643,18]
[342889664,1732194654849,-500.0,0.00041643,18]
[342889665,1732194654858,-500.0,0.00041643,18]
[342889666,1732194654867,-652.6,0.00041643,18]
[342889667,1732194654879,-500.0,0.00041643,18]
[342889668,1732194654889,-151.0,0.00041643,14]
[342889669,1732194654898,-500.0,0.00041643,18]
[342889670,1732194654907,-1425.81,0.00041643,18]
[342889671,1732194654916,-500.0,0.00041643,18]
[342889672,1732194654926,-500.0,0.00041643,18]
[342889673,1732194654936,-500.0,0.00041643,18]
[342889674,1732194654945,-500.0,0.00041643,18]
[342889675,1732194654955,-519.7,0.00041643,18]
[342889676,1732194654964,-609.85,0.00041643,18]
[342889677,1732194654973,-500.0,0.00041643,18]
[342889678,1732194654983,-1000.0,0.00041643,18]
[342889679,1732194654992,-500.0,0.00041643,18]
[342889680,1732194655002,-726.23,0.00041643,18]
[342889681,1732194655011,-500.0,0.00041643,18]
[342889682,1732194655020,-500.0,0.00041643,18]
[342889683,1732194655029,-500.0,0.00041643,18]
[342889684,1732194655038,-721.01,0.00041643,18]
[342889685,1732194655048,-500.0,0.00041643,18]
[342889686,1732194655057,-500.0,0.00041643,18]
[342889687,1732194655067,-500.0,0.00041643,18]
[342889688,1732194655076,-151.0,0.00041643,14]
[342889689,1732194655086,-500.0,0.00041643,18]
[342889690,1732194655095,-1387.16,0.00041643,7]
[342889691,1732194655104,-500.0,0.00041643,18]
[342889692,1732194655113,-627.75,0.00041643,18]
[342889693,1732194655124,-151.0,0.00041643,14]
[342889694,1732194655134,-2905.88,0.00041643,18]
[342889695,1732194655143,-500.0,0.00041643,18]
[342889696,1732194655152,-500.0,0.00041643,18]
[342889697,1732194655161,-500.0,0.00041643,18]
[342889698,1732194655171,-500.0,0.00041643,18]
[342889699,1732194655180,-1787.31,0.00041643,18]
[342889700,1732194655190,-500.0,0.00041643,18]
[342889701,1732194655200,-500.0,0.00041643,18]
[342889702,1732194655209,-697.01,0.00041643,18]
[342889703,1732194655218,-570.86,0.00041643,18]
[342889704,1732194655228,-891.07,0.00041643,18]
[342889705,1732194655238,-500.0,0.00041643,18]
[342889706,1732194655248,-500.0,0.00041643,18]
[342889707,1732194655257,-505.78,0.00041643,18]
[342889708,1732194655267,-500.0,0.00041643,18]
[342889709,1732194655276,-500.0,0.00041643,18]
[342889710,1732194655286,-500.0,0.00041643,18]
[342889711,1732194655296,-500.0,0.00041643,18]
[342889712,1732194655306,-490.93,0.00041643,18]
[342889713,1732194655315,-664.43,0.00041643,18]
[342889714,1732194655325,-500.0,0.00041643,18]
[342889715,1732194655335,-935.26,0.00041643,18]
[342889716,1732194655345,-614.9,0.00041643,18]
[342889717,1732194655354,-500.0,0.00041643,18]
[342889718,1732194655364,-500.0,0.00041643,18]
[342889719,1732194655378,-746.76,0.00041643,18]
[342889720,1732194655388,-500.0,0.00041643,18]
[342889721,1732194655398,-500.0,0.00041643,18]
[342889722,1732194655409,-635.10893512,0.00041643,18]
[342889723,1732194655426,-500.0,0.00041643,18]
[342889724,1732194655436,-1252.1,0.00041643,18]
[342889725,1732194655445,-500.0,0.00041643,18]
[342889726,1732194655455,-579.63,0.00041643,18]
[342889727,1732194655465,-530.79,0.00041643,18]
[342889728,1732194655475,-1268.23,0.00041643,18]
[342889729,1732194655485,-500.0,0.00041643,18]
[342889730,1732194655494,-500.0,0.00041643,18]
[342889731,1732194655505,-1111.74,0.00041643,18]
[342889732,1732194655514,-1796.01,0.00041643,18]
[342889733,1732194655524,-500.0,0.00041643,18]
[342889734,1732194655533,-749.73,0.00041643,18]
[342889735,1732194655543,-500.0,0.00041643,18]
[342889736,1732194655554,-910.85,0.00041643,18]
[342889737,1732194655563,-500.0,0.00041643,18]
[342889738,1732194655573,-833.17,0.00041643,18]
[342889739,1732194655583,-1119.76,0.00041643,18]
[342889740,1732194655593,-834.39,0.00041643,18]
[342889741,1732194655603,-500.0,0.00041643,18]
[342889742,1732194655613,-1408.09,0.00041643,18]
[342889743,1732194655627,-1181.61,0.00041643,18]
[342889744,1732194655636,-500.0,0.00041643,18]
[342889745,1732194655647,-500.0,0.00041643,18]
[342889746,1732194655657,-1339.59,0.00041643,18]
[342889747,1732194655667,-500.0,0.00041643,18]
[342889748,1732194655677,-1632.1,0.00041643,18]
[342889749,1732194655687,-1303.89,0.00041643,18]
[342889750,1732194655696,-500.0,0.00041643,18]
[342889751,1732194655706,-637.67867272,0.00041643,18]
[342889752,1732194655715,-648.48,0.00041643,18]
[342889753,1732194655725,-811.5,0.00041643,18]
[342889754,1732194655734,-500.0,0.00041643,18]
[342889755,1732194655743,-1333.26,0.00041643,18]
[342889756,1732194655753,-733.69,0.00041643,18]
[342889757,1732194655763,-641.2,0.00041643,18]
[342889758,1732194655772,-500.0,0.00041643,18]
[342889759,1732194655782,-500.0,0.00041643,18]
[342889760,1732194655792,-500.0,0.00041643,18]
[342889761,1732194655802,-1373.8,0.00041643,18]
[342889762,1732194655813,-500.0,0.00041643,18]
[342889763,1732194655825,-1625.55,0.00041643,18]
[342889764,1732194655836,-1057.1,0.00041643,18]
[342889765,1732194655847,-500.0,0.00041643,18]
[342889766,1732194655856,-1350.73,0.00041643,18]
[342889767,1732194655866,-1687.47,0.00041643,18]
[342889768,1732194655876,-500.0,0.00041643,18]
[342889769,1732194655886,-1201.74,0.00041643,18]
[342889770,1732194655895,-591.33,0.00041643,18]
[342889771,1732194655905,-500.0,0.00041643,18]
[342889772,1732194655915,-1016.57,0.00041643,18]
[342889773,1732194655924,-626.08,0.00041643,120]
[342889774,1732194655933,-500.0,0.00041643,18]
[342889775,1732194655945,-826.82,0.00041643,18]
[342889776,1732194655954,-500.0,0.00041643,18]
[342889777,1732194655964,-1376.07,0.00041643,18]
[342889778,1732194655973,-500.0,0.00041643,18]
[342889779,1732194655983,-2069.65,0.00041643,18]
[342889780,1732194655993,-671.29,0.00041643,18]
[342889781,1732194656002,-500.0,0.00041643,18]
[342889782,1732194656011,-483.22103679,0.00041643,18]
[342889783,1732194656020,-773.7,0.00041643,18]
[342889784,1732194656030,-500.0,0.00041643,18]
[342889785,1732194656039,-609.6,0.00041643,18]
[342889786,1732194656048,-290.08778193,0.00041643,18]
[342889787,1732194656057,-151.0,0.00041643,14]
[342889788,1732194656066,-537.0,0.00041643,18]
[342889789,1732194656075,-500.0,0.00041643,18]
[342889790,1732194656085,-847.49,0.00041643,18]
[342889791,1732194656097,-500.0,0.00041643,18]
[342889792,1732194656107,-960.97,0.00041643,18]
[342889793,1732194656116,-500.0,0.00041643,18]
[342889794,1732194656128,-742.24,0.00041643,18]
[342889795,1732194656137,-1984.26,0.00041643,18]
[342889796,1732194656147,-1389.96,0.00041643,18]
[342889797,1732194656156,-1017.44,0.00041643,18]
[342889798,1732194656166,-634.95,0.00041643,18]
[342889799,1732194656176,-701.56,0.00041643,18]
[342889800,1732194656185,-1034.42,0.00041643,18]
[342889801,1732194656194,-500.0,0.00041643,18]
[342889802,1732194656203,-500.0,0.00041643,18]
[342889803,1732194656213,-558.62,0.00041643,18]
[342889804,1732194656223,-664.48,0.00041643,18]
[342889805,1732194656232,-1171.42,0.00041643,18]
[342889806,1732194656243,-1624.38,0.00041643,18]
[342889807,1732194656252,-500.0,0.00041643,18]
[342889808,1732194656262,-626.82,0.00041643,18]
[342889809,1732194656271,-500.0,0.00041643,18]
[342889810,1732194656281,-500.0,0.00041643,18]